fUSD/lending_fUSD_20260404
["ID","MTS","AMOUNT","RATE_DAILY","PERIOD"]
[419681686,1775280671874,-500.0,0.00035835,9]
[419681687,1775280671885,-1430.79,0.00035835,9]
[419681688,1775280671896,-500.0,0.00035835,9]
[419681689,1775280671906,-734.9,0.00035835,9]
[419681690,1775280671917,-500.0,0.00035835,9]
[419681691,1775280671926,-500.0,0.00035835,9]
[419681692,1775280671936,-500.0,0.00035835,9]
[419681693,1775280671945,-802.74,0.00035835,9]
[419681694,1775280671955,-835.82,0.00035835,9]
[419681695,1775280671965,-500.0,0.00035835,9]
[419681696,1775280671974,-798.67,0.00035835,9]
[419681697,1775280671984,-500.0,0.00035835,9]
[419681698,1775280671993,-500.0,0.00035835,9]
[419681699,1775280672003,-507.61784807,0.00035835,9]
[419681700,1775280672014,-500.0,0.00035835,9]
[419681701,1775280672024,-500.0,0.00035835,9]
[419681702,1775280672034,-500.0,0.00035835,9]
[419681703,1775280672044,-901.72,0.00035835,9]
[419681704,1775280672053,-500.0,0.00035835,9]
[419681705,1775280672063,-500.0,0.00035835,9]
[419681706,1775280672072,-500.0,0.00035835,9]
[419681707,1775280672082,-500.0,0.00035835,9]
[419681708,1775280672092,-1123.46,0.00035835,9]
[419681709,1775280672102,-1044.33,0.00035835,9]
[419681710,1775280672112,-1230.08,0.00035835,9]
[419681711,1775280672121,-620.99575746,0.00035835,9]
[419681712,1775280672131,-1693.82,0.00035835,9]
[419681713,1775280672141,-500.0,0.00035835,9]
[419681714,1775280672151,-500.0,0.00035835,9]
[419681715,1775280672162,-500.0,0.00035835,9]
[419681716,1775280672172,-500.0,0.00035835,2]
[419681717,1775280672185,-1596.49,0.00035835,9]
[419681718,1775280672195,-199.39923626,0.00035835,9]
[419681719,1775280672215,-500.0,0.00035835,9]
[419681720,1775280672228,-615.98589566,0.00035835,9]
[419681721,1775280672239,-500.0,0.00035835,9]
[419681722,1775280672250,-1061.35,0.00035835,9]
[419681723,1775280672261,-500.0,0.00035835,9]
[419681724,1775280672272,-1492.49,0.00035835,9]
[419681725,1775280672282,-500.0,0.00035835,9]
[419681726,1775280672293,-500.0,0.00035835,9]
[419681727,1775280672307,-500.0,0.00035835,9]
[419681728,1775280672318,-500.0,0.00035835,9]
[419681729,1775280672329,-500.0,0.00035835,9]
[419681730,1775280672340,-550.97,0.00035835,9]
[419681731,1775280672351,-506.79551449,0.00035835,9]
[419681732,1775280672362,-653.46,0.00035835,9]
[419681733,1775280672372,-500.0,0.00035835,9]
[419681734,1775280672383,-500.0,0.00035835,9]
[419681735,1775280672393,-500.0,0.00035835,9]
[419681736,1775280672403,-500.0,0.00035835,9]
[419681737,1775280672413,-500.0,0.00035835,9]
[419681738,1775280672423,-500.0,0.00035835,9]
[419681739,1775280672433,-1492.94,0.00035835,7]
[419681740,1775280672443,-500.0,0.00035835,9]
[419681741,1775280672454,-500.0,0.00035835,9]
[419681742,1775280672464,-1209.29,0.00035835,9]
[419681743,1775280672475,-500.0,0.00035835,9]
[419681744,1775280672487,-500.0,0.00035835,9]
[419681745,1775280672498,-504.2,0.00035835,9]
[419681746,1775280672509,-500.0,0.00035835,9]
[419681747,1775280672520,-1338.82,0.00035835,9]
[419681748,1775280672532,-500.0,0.00035835,9]
[419681749,1775280672543,-500.0,0.00035835,9]
[419681750,1775280672553,-891.16,0.00035835,9]
[419681751,1775280672563,-504.27641395,0.00035835,9]
[419681752,1775280672574,-151.0,0.00035835,7]
[419681753,1775280672584,-151.0,0.00035835,7]
[419681754,1775280672595,-500.0,0.00035835,9]
[419681755,1775280672605,-1892.58,0.00035835,9]
[419681756,1775280672616,-500.0,0.00035835,9]
[419681757,1775280672627,-151.0,0.00035835,7]
[419681758,1775280672636,-500.0,0.00035835,9]
[419681759,1775280672647,-151.0,0.00035835,7]
[419681760,1775280672657,-500.0,0.00035835,9]
[419681761,1775280672667,-500.0,0.00035835,9]
[419681762,1775280672678,-500.0,0.00035835,9]
[419681763,1775280672688,-500.0,0.00035835,9]
[419681764,1775280672698,-500.0,0.00035835,9]
[419681765,1775280672708,-1108.7,0.00035835,9]
[419681766,1775280672719,-500.0,0.00035835,9]
[419681767,1775280672729,-500.0,0.00035835,9]
[419681768,1775280672740,-500.0,0.00035835,9]
[419681769,1775280672751,-500.0,0.00035835,9]
[419681770,1775280672762,-500.0,0.00035835,9]
[419681771,1775280672773,-500.0,0.00035835,9]
[419681772,1775280672784,-500.0,0.00035835,9]
[419681773,1775280673021,-1457.69,0.00035835,9]
[419681774,1775280673032,-447.00387406,0.00035835,9]
[419681775,1775280673042,-500.0,0.00035835,9]
[419681776,1775280673052,-500.0,0.00035835,9]
[419681777,1775280673063,-634.0,0.00035835,9]
[419681778,1775280673072,-500.0,0.00035835,9]
[419681779,1775280673082,-522.56615127,0.00035835,9]
[419681780,1775280673092,-500.0,0.00035835,9]
[419681781,1775280673103,-500.0,0.00035835,9]
[419681782,1775280673112,-935.11,0.00035835,9]
[419681783,1775280673122,-901.08,0.00035835,9]
[419681784,1775280673133,-500.0,0.00035835,9]
[419681785,1775280673143,-500.0,0.00035835,9]
[419681786,1775280673153,-500.0,0.00035835,9]
[419681787,1775280673162,-500.0,0.00035835,9]
[419681788,1775280673172,-504.28462639,0.00035835,9]
[419681789,1775280673182,-500.0,0.00035835,9]
[419681790,1775280673192,-500.0,0.00035835,9]
[419681791,1775280673201,-500.0,0.00035835,9]
[419681792,1775280673211,-500.45043191,0.00035835,9]
[419681793,1775280673220,-500.0,0.00035835,9]
[419681794,1775280673230,-990.0,0.00035835,9]
[419681795,1775280673240,-500.0,0.00035835,9]
[419681796,1775280673250,-511.65639393,0.00035835,9]
[419681797,1775280673260,-500.0,0.00035835,9]
[419681798,1775280673269,-500.0,0.00035835,9]
[419681799,1775280673278,-770.94,0.00035835,9]
[419681800,1775280673288,-500.0,0.00035835,9]
[419681801,1775280673297,-500.0,0.00035835,9]
[419681802,1775280673307,-500.0,0.00035835,9]
[419681803,1775280673316,-500.0,0.00035835,9]
[419681804,1775280673326,-500.0,0.00035835,9]
[419681805,1775280673335,-932.82,0.00035835,9]
[419681806,1775280673346,-500.0,0.00035835,9]
[419681807,1775280673356,-500.0,0.00035835,9]
[419681808,1775280673365,-500.0,0.00035835,9]
[419681809,1775280673375,-500.0,0.00035835,9]
[419681810,1775280673385,-500.0,0.00035835,9]
[419681811,1775280673395,-500.0,0.00035835,9]
[419681812,1775280673406,-500.0,0.00035835,9]
[419681813,1775280673415,-500.0,0.00035835,9]
[419681814,1775280673424,-500.0,0.00035835,9]
[419681815,1775280673434,-500.0,0.00035835,9]
[419681816,1775280673444,-500.0,0.00035835,9]
[419681817,1775280673454,-500.0,0.00035835,9]
[419681818,1775280673464,-511.19387187,0.00035835,9]
[419681819,1775280673474,-1194.92,0.00035835,9]
[419681820,1775280673484,-500.0,0.00035835,9]
[419681821,1775280673493,-500.0,0.00035835,9]
[419681822,1775280673504,-500.0,0.00035835,9]
[419681823,1775280673513,-519.5185241,0.00035835,9]
[419681824,1775280673523,-500.0,0.00035835,9]
[419681825,1775280673533,-151.0,0.00035835,7]
[419681826,1775280673543,-1294.2,0.00035835,9]
[419681827,1775280673552,-500.0,0.00035835,9]
[419681828,1775280673564,-158.581746,0.00035835,7]
[419681829,1775280673574,-500.0,0.00035835,9]
[419681830,1775280673583,-500.0,0.00035835,9]
[419681831,1775280673593,-500.0,0.00035835,9]
[419681832,1775280673604,-610.34,0.00035835,9]
[419681833,1775280673613,-500.0,0.00035835,9]
[419681834,1775280673628,-711.02,0.00035835,9]
[419681835,1775280673638,-507.28717228,0.00035835,9]
[419681836,1775280673648,-500.0,0.00035835,9]
[419681837,1775280673659,-509.16394588,0.00035835,9]
[419681838,1775280673668,-521.17,0.00035835,9]
[419681839,1775280673678,-505.81,0.00035835,9]
[419681840,1775280673688,-523.09,0.00035835,9]
[419681841,1775280673698,-744.02,0.00035835,9]
[419681842,1775280673708,-500.0,0.00035835,9]
[419681843,1775280673718,-500.0,0.00035835,9]
[419681844,1775280673729,-500.0,0.00035835,9]
[419681845,1775280673740,-590.44,0.00035835,9]
[419681846,1775280673750,-2226.41,0.00035835,9]
[419681847,1775280673760,-500.0,0.00035835,9]
[419681848,1775280673771,-500.0,0.00035835,9]
[419681849,1775280673781,-500.0,0.00035835,9]
[419681850,1775280673792,-500.0,0.00035835,9]
[419681851,1775280673802,-1037.6,0.00035835,9]
[419681852,1775280673812,-500.0,0.00035835,9]
[419681853,1775280673823,-663.14,0.00035835,9]
[419681854,1775280673832,-500.0,0.00035835,9]
[419681855,1775280673844,-500.0,0.00035835,9]
[419681856,1775280673855,-500.0,0.00035835,9]
[419681857,1775280673865,-500.0,0.00035835,9]
[419681858,1775280673875,-500.0,0.00035835,9]
[419681859,1775280673885,-528.31771394,0.00035835,9]
[419681860,1775280673896,-609.59,0.00035835,9]
[419681861,1775280673905,-500.0,0.00035835,9]
[419681862,1775280673915,-1020.17,0.00035835,9]
[419681863,1775280673925,-512.59728025,0.00035835,9]
[419681864,1775280673935,-500.0,0.00035835,9]
[419681865,1775280673945,-500.0,0.00035835,9]
[419681866,1775280673954,-500.0,0.00035835,9]
[419681867,1775280673965,-500.0,0.00035835,9]
[419681868,1775280673975,-500.0,0.00035835,9]
[419681869,1775280673985,-1585.05,0.00035835,9]
[419681870,1775280673995,-1171.59,0.00035835,9]
[419681871,1775280674006,-1101.01,0.00035835,9]
[419681872,1775280674016,-161.13213599,0.00035835,9]
[419681873,1775280674026,-151.0,0.00035835,7]
[419681874,1775280674036,-500.0,0.00035835,9]
[419681875,1775280674047,-229.887198,0.00035835,7]
[419681876,1775280674057,-500.0,0.00035835,9]
[419681877,1775280674067,-394.82613941,0.00035835,9]
[419681878,1775280674078,-500.0,0.00035835,9]
[419681879,1775280674088,-1263.62,0.00035835,9]
[419681880,1775280674098,-631.83,0.00035835,9]
[419681881,1775280674108,-500.0,0.00035835,9]
[419681882,1775280674118,-500.0,0.00035835,9]
[419681883,1775280674127,-500.0,0.00035835,9]
[419681884,1775280674138,-500.0,0.00035835,9]
[419681885,1775280674147,-500.0,0.00035835,9]
[419681886,1775280674157,-500.0,0.00035835,9]
[419681887,1775280674167,-500.0,0.00035835,9]
[419681888,1775280674178,-500.0,0.00035835,9]
[419681889,1775280674188,-898.46,0.00035835,9]
[419681890,1775280674198,-500.0,0.00035835,9]
[419681891,1775280674208,-500.0,0.00035835,9]
[419681892,1775280674218,-500.0,0.00035835,9]
[419681893,1775280674228,-1196.16,0.00035835,9]
[419681894,1775280674237,-500.0,0.00035835,9]
[419681895,1775280674247,-814.86,0.00035835,9]
[419681896,1775280674257,-500.0,0.00035835,9]
[419681897,1775280674266,-500.0,0.00035835,9]
[419681898,1775280674276,-550.58637826,0.00035835,9]
[419681899,1775280674286,-500.0,0.00035835,9]
[419681900,1775280674296,-500.0,0.00035835,9]
[419681901,1775280674306,-500.0,0.00035835,9]
[419681902,1775280674315,-500.0,0.00035835,9]
[419681903,1775280674325,-500.0,0.00035835,9]
[419681904,1775280674335,-500.0,0.00035835,9]
[419681905,1775280674346,-755.32,0.00035835,9]
[419681906,1775280674356,-500.0,0.00035835,9]
[419681907,1775280674366,-500.0,0.00035835,9]
[419681908,1775280674376,-500.0,0.00035835,9]
[419681909,1775280674385,-500.0,0.00035835,9]
[419681910,1775280674396,-500.0,0.00035835,9]
[419681911,1775280674406,-500.0,0.00035835,9]
[419681912,1775280674417,-500.0,0.00035835,9]
[419681913,1775280674427,-1238.58,0.00035835,9]
[419681914,1775280674437,-500.0,0.00035835,9]
[419681915,1775280674448,-500.0,0.00035835,9]
[419681916,1775280674459,-729.81,0.00035835,9]
[419681917,1775280674470,-469.7139113,0.00035835,9]
[419681918,1775280674482,-500.0,0.00035835,9]
[419681919,1775280674491,-500.0,0.00035835,9]
[419681920,1775280674502,-500.0,0.00035835,9]
[419681921,1775280674513,-500.0,0.00035835,9]
[419681922,1775280674523,-500.0,0.00035835,9]
[419681923,1775280674533,-500.0,0.00035835,9]
[419681924,1775280674542,-500.0,0.00035835,9]
[419681925,1775280674554,-500.0,0.00035835,9]
[419681926,1775280674564,-151.0,0.00035835,7]
[419681927,1775280674573,-500.0,0.00035835,9]
[419681928,1775280674583,-893.0,0.00035835,9]
[419681929,1775280674594,-2230.54,0.00035835,9]
[419681930,1775280674604,-504.65100972,0.00035835,9]
[419681931,1775280674614,-500.0,0.00035835,9]
[419681932,1775280674624,-500.0,0.00035835,9]
[419681933,1775280674635,-500.0,0.00035835,9]
[419681934,1775280674645,-1378.5,0.00035835,9]
[419681935,1775280674655,-500.0,0.00035835,9]
[419681936,1775280674665,-500.0,0.00035835,9]
[419681937,1775280674675,-500.0,0.00035835,9]
[419681938,1775280674684,-500.0,0.00035835,9]
[419681939,1775280674694,-515.82330157,0.00035835,9]
[419681940,1775280674703,-500.0,0.00035835,9]
[419681941,1775280674713,-1067.13,0.00035835,9]
[419681942,1775280674723,-1884.9,0.00035835,9]
[419681943,1775280674732,-560.74,0.00035835,9]
[419681944,1775280674742,-500.0,0.00035835,9]
[419681945,1775280674752,-500.0,0.00035835,9]
[419681946,1775280674762,-500.0,0.00035835,9]
[419681947,1775280674771,-500.0,0.00035835,9]
[419681948,1775280674781,-500.0,0.00035835,9]
[419681949,1775280674790,-1331.36,0.00035835,9]
[419681950,1775280674800,-500.0,0.00035835,9]
[419681951,1775280674809,-500.0,0.00035835,9]
[419681952,1775280674818,-500.0,0.00035835,9]
[419681953,1775280674828,-432.76587887,0.00035835,9]
[419681954,1775280674838,-500.0,0.00035835,9]
[419681955,1775280674848,-633.13079065,0.00035835,9]
[419681956,1775280674858,-500.0,0.00035835,9]
[419681957,1775280674867,-835.147594,0.00035835,7]
[419681958,1775280674877,-835.147594,0.00035835,7]
[419681959,1775280674887,-1139.27329,0.00035835,7]
[419681960,1775280674896,-835.147594,0.00035835,7]
[419681961,1775280674905,-1139.27329,0.00035835,7]
[419681962,1775280674915,-651.88,0.00035835,9]
[419681963,1775280674924,-500.0,0.00035835,9]
[419681964,1775280674934,-500.0,0.00035835,9]
[419681965,1775280674943,-835.147594,0.00035835,7]
[419681966,1775280674953,-1139.27329,0.00035835,7]
[419681967,1775280674962,-1139.27329,0.00035835,7]
[419681968,1775280674972,-500.0,0.00035835,9]
[419681969,1775280674981,-631.6621055,0.00035835,9]
[419681970,1775280674990,-500.0,0.00035835,9]
[419681971,1775280675000,-802.51,0.00035835,9]
[419681972,1775280675010,-500.0,0.00035835,9]
[419681973,1775280675020,-500.0,0.00035835,9]
[419681974,1775280675029,-668.57,0.00035835,9]
[419681975,1775280675038,-500.0,0.00035835,9]
[419681976,1775280675048,-500.0,0.00035835,9]
[419681977,1775280675058,-709.22,0.00035835,9]
[419681978,1775280675068,-1148.11,0.00035835,9]
[419681979,1775280675077,-614.06,0.00035835,9]
[419681980,1775280675086,-500.0,0.00035835,9]
[419681981,1775280675096,-500.0,0.00035835,9]
[419681982,1775280675105,-1164.93,0.00035835,9]
[419681983,1775280675116,-500.0,0.00035835,9]
[419681984,1775280675125,-500.0,0.00035835,9]
[419681985,1775280675138,-2086.14,0.00035835,9]
[419681986,1775280675148,-811.2,0.00035835,9]
[419681987,1775280675157,-554.8,0.00035835,9]
[419681988,1775280675167,-500.0,0.00035835,9]
[419681989,1775280675176,-500.0,0.00035835,9]
[419681990,1775280675185,-597.75,0.00035835,9]
[419681991,1775280675195,-623.4,0.00035835,9]
[419681992,1775280675205,-500.0,0.00035835,9]
[419681993,1775280675214,-1141.03,0.00035835,9]
[419681994,1775280675224,-1995.89,0.00035835,9]
[419681995,1775280675233,-500.0,0.00035835,9]
[419681996,1775280675242,-694.19,0.00035835,9]
[419681997,1775280675251,-13734.68,0.00035835,9]
[419681998,1775280675260,-500.0,0.00035835,9]
[419681999,1775280675270,-500.0,0.00035835,9]
[419682000,1775280675279,-500.0,0.00035835,9]
[419682001,1775280675288,-810.03,0.00035835,9]
[419682002,1775280675297,-500.0,0.00035835,9]
[419682003,1775280675307,-500.0,0.00035835,9]
[419682004,1775280675316,-500.0,0.00035835,9]
[419682005,1775280675325,-907.86,0.00035835,9]
[419682006,1775280675335,-500.0,0.00035835,9]
[419682007,1775280675344,-3684.53,0.00035835,9]
[419682008,1775280675354,-1590.77,0.00035835,9]
[419682009,1775280675363,-2383.6,0.00035835,9]
[419682010,1775280675374,-500.0,0.00035835,9]
[419682011,1775280675504,-500.0,0.00035835,9]
[419682012,1775280675513,-500.0,0.00035835,9]
[419682013,1775280675523,-500.0,0.00035835,9]
[419682014,1775280675532,-500.0,0.00035835,9]
[419682015,1775280675542,-500.0,0.00035835,9]
[419682016,1775280675551,-500.0,0.00035835,9]
[419682017,1775280675560,-851.14,0.00035835,9]
[419682018,1775280675570,-500.0,0.00035835,9]
[419682019,1775280675579,-500.0,0.00035835,9]
[419682020,1775280675588,-500.0,0.00035835,9]
[419682021,1775280675597,-1104.72,0.00035835,9]
[419682022,1775280675606,-500.0,0.00035835,9]
[419682023,1775280675616,-500.0,0.00035835,9]
[419682024,1775280675624,-500.0,0.00035835,9]
[419682025,1775280675633,-914.08,0.00035835,9]
[419682026,1775280675642,-500.0,0.00035835,9]
[419682027,1775280675651,-500.0,0.00035835,9]
[419682028,1775280675661,-330.96460062,0.00035835,9]
[419682029,1775280675670,-1858.66,0.00035835,9]
[419682030,1775280675680,-500.0,0.00035835,9]
[419682031,1775280675689,-514.88,0.00035835,9]
[419682032,1775280675698,-500.0,0.00035835,9]
[419682033,1775280675708,-500.0,0.00035835,9]
[419682034,1775280675717,-293.470487,0.00035835,7]
[419682035,1775280675727,-2761.74,0.00035835,9]
[419682036,1775280675736,-1126.74,0.00035835,9]
[419682037,1775280675746,-504.82,0.00035835,9]
[419682038,1775280675755,-2760.69,0.00035835,9]
[419682039,1775280675765,-783.55,0.00035835,9]
[419682040,1775280675775,-552.62,0.00035835,9]
[419682041,1775280675783,-164.76410437,0.00035835,9]
[419682042,1775280675792,-500.0,0.00035835,9]
[419682043,1775280675802,-3664.3,0.00035835,2]
[419682044,1775280675812,-630.24,0.00035835,9]
[419682045,1775280675821,-500.0,0.00035835,9]
[419682046,1775280675832,-1955.54,0.00035835,9]
[419682047,1775280675841,-2075.53,0.00035835,9]
[419682048,1775280675851,-500.0,0.00035835,9]
[419682049,1775280675860,-2874.35,0.00035835,9]
[419682050,1775280675869,-500.0,0.00035835,9]
[419682051,1775280675879,-151.0,0.00035835,7]
[419682052,1775280675888,-500.0,0.00035835,9]
[419682053,1775280675897,-1052.25,0.00035835,9]
[419682054,1775280675906,-500.0,0.00035835,9]
[419682055,1775280675916,-1493.22,0.00035835,9]
[419682056,1775280675926,-500.0,0.00035835,9]
[419682057,1775280675935,-151.0,0.00035835,7]
[419682058,1775280675945,-1053.01,0.00035835,9]
[419682059,1775280675955,-1613.95,0.00035835,9]
[419682060,1775280675964,-1210.79,0.00035835,9]
[419682061,1775280675974,-151.0,0.00035835,7]
[419682062,1775280675985,-593.18181472,0.00035835,9]
[419682063,1775280675995,-500.0,0.00035835,9]
[419682064,1775280676004,-153.953842,0.00035835,7]
[419682065,1775280676013,-643.00750457,0.00035835,9]
[419682066,1775280676023,-500.0,0.00035835,9]
[419682067,1775280676034,-500.0,0.00035835,9]
[419682068,1775280676043,-670.88,0.00035835,9]
[419682069,1775280676052,-500.0,0.00035835,9]
[419682070,1775280676062,-500.0,0.00035835,9]
[419682071,1775280676072,-500.0,0.00035835,9]
[419682072,1775280676081,-500.0,0.00035835,9]
[419682073,1775280676091,-473.36829914,0.00035835,9]
[419682074,1775280676101,-500.0,0.00035835,9]
[419682075,1775280676111,-1547.37,0.00035835,9]
[419682076,1775280676120,-500.0,0.00035835,9]
[419682077,1775280676130,-564.36,0.00035835,9]
[419682078,1775280676139,-1462.79,0.00035835,9]
[419682079,1775280676148,-500.0,0.00035835,9]
[419682080,1775280676158,-867.55,0.00035835,7]
[419682081,1775280676167,-500.0,0.00035835,9]
[419682082,1775280676177,-1034.95,0.00035835,9]
[419682083,1775280676186,-1397.46,0.00035835,9]
[419682084,1775280676195,-398.15085794,0.00035835,9]
[419682085,1775280676204,-1347.98,0.00035835,9]
[419682086,1775280676214,-1120.58,0.00035835,9]
[419682087,1775280676223,-500.0,0.00035835,9]
[419682088,1775280676232,-500.0,0.00035835,9]
[419682089,1775280676242,-2259.23,0.00035835,9]
[419682090,1775280676251,-500.0,0.00035835,7]
[419682091,1775280676260,-500.0,0.00035835,9]
[419682092,1775280676269,-500.0,0.00035835,9]
[419682093,1775280676279,-500.0,0.00035835,9]
[419682094,1775280676288,-500.0,0.00035835,9]
[419682095,1775280676297,-500.0,0.00035835,9]
[419682096,1775280676306,-500.0,0.00035835,9]
[419682097,1775280676316,-1227.05,0.00035835,9]
[419682098,1775280676327,-500.0,0.00035835,9]
[419682099,1775280676336,-2454.96,0.00035835,9]
[419682100,1775280676346,-500.0,0.00035835,9]
[419682101,1775280676355,-500.0,0.00035835,9]
[419682102,1775280676364,-1562.54,0.00035835,9]
[419682103,1775280676373,-1023.0,0.00035835,9]
[419682104,1775280676383,-766.51,0.00035835,9]
[419682105,1775280676392,-1251.23,0.00035835,9]
[419682106,1775280676401,-2177.44,0.00035835,9]
[419682107,1775280676410,-500.0,0.00035835,9]
[419682108,1775280676422,-1865.55,0.00035835,9]
[419682109,1775280676432,-334.24573299,0.00035835,9]
[419682110,1775280676443,-586.15863356,0.00035835,9]
[419682111,1775280676454,-551.25594904,0.00035835,9]
[419682112,1775280676465,-500.0,0.00035835,9]
[419682113,1775280676474,-1190.3,0.00035835,9]
[419682114,1775280676485,-578.41843357,0.00035835,9]
[419682115,1775280676495,-534.80988043,0.00035835,9]
[419682116,1775280676506,-500.0,0.00035835,9]
[419682117,1775280676517,-1080.7,0.00035835,9]
[419682118,1775280676526,-500.0,0.00035835,9]
[419682119,1775280676536,-500.0,0.00035835,9]
[419682120,1775280676545,-500.0,0.00035835,9]
[419682121,1775280676557,-500.0,0.00035835,9]
[419682122,1775280676566,-233.00210216,0.00035835,9]
[419682123,1775280676575,-500.0,0.00035835,9]
[419682124,1775280676585,-500.0,0.00035835,9]
[419682125,1775280676595,-1376.41,0.00035835,9]
[419682126,1775280676604,-468.35358721,0.00035835,9]
[419682127,1775280676615,-2974.27,0.00035835,9]
[419682128,1775280676626,-500.0,0.00035835,9]
[419682129,1775280676635,-2287.39,0.00035835,9]
[419682130,1775280676645,-500.0,0.00035835,9]
[419682131,1775280676655,-500.0,0.00035835,9]
[419682132,1775280676664,-500.0,0.00035835,9]
[419682133,1775280676674,-1119.73,0.00035835,9]
[419682134,1775280676683,-500.0,0.00035835,9]
[419682135,1775280676692,-500.0,0.00035835,9]
[419682136,1775280676701,-1143.8,0.00035835,9]
[419682137,1775280676711,-500.0,0.00035835,9]
[419682138,1775280676720,-186.053973,0.00035835,7]
[419682139,1775280676730,-500.0,0.00035835,9]
[419682140,1775280676739,-1176.55,0.00035835,9]
[419682141,1775280676749,-500.0,0.00035835,9]
[419682142,1775280676758,-653.2,0.00035835,9]
[419682143,1775280676768,-500.0,0.00035835,9]
[419682144,1775280676778,-186.053973,0.00035835,7]
[419682145,1775280676787,-2370.68,0.00035835,9]
[419682146,1775280676797,-500.0,0.00035835,9]
[419682147,1775280676806,-186.053973,0.00035835,7]
[419682148,1775280676815,-500.0,0.00035835,9]
[419682149,1775280676826,-500.0,0.00035835,9]
[419682150,1775280676835,-186.053973,0.00035835,7]
[419682151,1775280676845,-1291.04,0.00035835,9]
[419682152,1775280676855,-1718.88,0.00035835,9]
[419682153,1775280676865,-1454.11,0.00035835,9]
[419682154,1775280676875,-500.0,0.00035835,9]
[419682155,1775280676884,-500.0,0.00035835,9]
[419682156,1775280676894,-500.0,0.00035835,9]
[419682157,1775280676904,-500.0,0.00035835,9]
[419682158,1775280676914,-500.0,0.00035835,9]
[419682159,1775280676924,-500.0,0.00035835,9]
[419682160,1775280676933,-500.0,0.00035835,9]
[419682161,1775280676943,-500.0,0.00035835,9]
[419682162,1775280676952,-500.0,0.00035835,9]
[419682163,1775280676962,-850.48,0.00035835,9]
[419682164,1775280676971,-500.0,0.00035835,9]
[419682165,1775280676981,-500.0,0.00035835,9]
[419682166,1775280676990,-500.0,0.00035835,9]
[419682167,1775280676999,-550.93,0.00035835,9]
[419682168,1775280677009,-977.71,0.00035835,9]
[419682169,1775280677019,-500.0,0.00035835,9]
[419682170,1775280677029,-500.0,0.00035835,9]
[419682171,1775280677039,-500.0,0.00035835,9]
[419682172,1775280677050,-500.0,0.00035835,9]
[419682173,1775280677060,-500.0,0.00035835,9]
[419682174,1775280677069,-500.0,0.00035835,9]
[419682175,1775280677080,-500.0,0.00035835,30]
[419682176,1775280677089,-599.39,0.00035835,9]
[419682177,1775280677098,-3648.36,0.00035835,9]
[419682178,1775280677108,-500.0,0.00035835,9]
[419682179,1775280677117,-1742.98,0.00035835,9]
[419682180,1775280677127,-500.0,0.00035835,9]
[419682181,1775280677137,-500.0,0.00035835,9]
[419682182,1775280677146,-500.0,0.00035835,9]
[419682183,1775280677156,-500.0,0.00035835,9]
[419682184,1775280677165,-500.0,0.00035835,9]
[419682185,1775280677175,-169.124376,0.00035835,9]